fUST/lending_fUST_20240615
["ID","MTS","AMOUNT","RATE_DAILY","PERIOD"]
[329554426,1718433045640,-501.58640493,0.00016438,2]
[329554427,1718433045665,-500.0,0.00016438,2]
[329554429,1718433045692,-500.0,0.00016438,2]
[329554431,1718433045710,-504.81890595,0.00016438,2]
[329554433,1718433045723,-500.0,0.00016438,2]
[329554435,1718433045753,-500.0,0.00016438,2]
[329554437,1718433045770,-503.69357454,0.00016438,2]
[329554439,1718433045784,-500.0,0.00016438,2]
[329554441,1718433045796,-504.04593927,0.00016438,2]
[329554443,1718433045828,-501.38060963,0.00016438,2]
[329554445,1718433045851,-442.71508856,0.00016438,2]
[329554446,1718433045862,-500.0,0.00016438,2]
[329554448,1718433045919,-502.17755845,0.00016438,2]
[329554450,1718433045953,-500.0,0.00016438,2]
[329554452,1718433046013,-508.48167899,0.00016438,2]
[329554454,1718433046050,-523.52967918,0.00016438,2]
[329554457,1718433046127,-508.49936993,0.00016438,2]
[329554458,1718433046139,-500.0,0.00016438,2]
[329554461,1718433046151,-537.15838422,0.00016438,2]
[329554463,1718433046170,-500.0,0.00016438,2]
[329554466,1718433046265,-496.39024279,0.00016438,2]
[329554467,1718433046316,-151.0,0.00016438,2]
[329554468,1718433046330,-151.0,0.00016438,2]
[329554470,1718433046355,-500.0,0.00016438,2]
[329554473,1718433046400,-500.0,0.00016438,2]
[329554475,1718433046412,-504.96258821,0.00016438,2]
[329554478,1718433046426,-504.15134741,0.00016438,2]
[329554479,1718433046456,-514.12603534,0.00016438,2]
[329554481,1718433046469,-500.0,0.00016438,2]
[329554484,1718433046494,-500.0,0.00016438,2]
[329554486,1718433046519,-500.0,0.00016438,2]
[329554488,1718433046538,-203.902466,0.00016438,2]
[329554491,1718433046572,-503.08414046,0.00016438,2]
[329554493,1718433046588,-500.0,0.00016438,2]
[329554495,1718433046604,-500.0,0.00016438,2]
[329554497,1718433046622,-500.85510819,0.00016438,2]
[329554498,1718433046634,-500.0,0.00016438,2]
[329554499,1718433046673,-503.16246576,0.00016438,2]
[329554501,1718433046703,-500.0,0.00016438,2]
[329554503,1718433046721,-537.69073489,0.00016438,2]
[329554505,1718433046755,-500.0,0.00016438,2]
[329554507,1718433046832,-500.0,0.00016438,2]
[329554508,1718433046849,-500.0,0.00016438,2]
[329554510,1718433046862,-161.587946,0.00016438,2]
[329554512,1718433046875,-503.20887304,0.00016438,2]
[329554514,1718433046887,-500.0,0.00016438,2]
[329554516,1718433046913,-520.52033147,0.00016438,2]
[329554519,1718433046930,-508.33113845,0.00016438,2]
[329554521,1718433046950,-500.0,0.00016438,2]
[329554523,1718433046965,-500.0,0.00016438,2]
[329554525,1718433046993,-500.0,0.00016438,2]
[329554526,1718433047007,-500.0,0.00016438,2]
[329554528,1718433047028,-500.0,0.00016438,2]
[329554531,1718433047054,-151.0,0.00016438,2]
[329554533,1718433047077,-501.99753114,0.00016438,2]
[329554534,1718433047100,-502.12413421,0.00016438,2]
[329554537,1718433047113,-500.0,0.00016438,2]
[329554538,1718433047137,-151.0,0.00016438,2]
[329554540,1718433047163,-152.247022,0.00016438,2]
[329554542,1718433047178,-151.0,0.00016438,2]
[329554545,1718433047216,-263.596527,0.00016438,2]
[329554547,1718433047238,-511.50768398,0.00016438,2]
[329554549,1718433047291,-151.0,0.00016438,2]
[329554550,1718433047303,-151.838017,0.00016438,2]
[329554552,1718433047315,-204.4381395,0.00016438,2]
[329554554,1718433047326,-943.87,0.00016438,2]
[329554555,1718433047347,-500.0,0.00016438,2]
[329554557,1718433047361,-500.0,0.00016438,2]
[329554558,1718433047386,-630.46,0.00016438,2]
[329554561,1718433047420,-302.71912183,0.00016438,2]
[329554564,1718433047441,-507.55133893,0.00016438,2]
[329554566,1718433047451,-507.18496593,0.00016438,2]
[329554568,1718433047465,-515.54235663,0.00016438,2]
[329554570,1718433047476,-504.25812048,0.00016438,2]
[329554572,1718433047494,-559.44,0.00016438,2]
[329554573,1718433047510,-500.0,0.00016438,2]
[329554575,1718433047535,-2167.47,0.00016438,2]
[329554577,1718433047552,-837.79,0.00016438,2]
[329554579,1718433047562,-500.0,0.00016438,2]
[329554581,1718433047573,-500.0,0.00016438,2]
[329554583,1718433047583,-500.0,0.00016438,2]
[329554585,1718433047594,-759.55,0.00016438,2]
[329554587,1718433047606,-503.73228866,0.00016438,2]
[329554589,1718433047616,-1465.84,0.00016438,2]
[329554590,1718433047627,-500.0,0.00016438,2]
[329554593,1718433047642,-500.0,0.00016438,2]
[329554595,1718433047654,-585.44,0.00016438,2]
[329554597,1718433047666,-500.0,0.00016438,2]
[329554599,1718433047692,-500.0,0.00016438,2]
[329554601,1718433047702,-500.0,0.00016438,2]
[329554603,1718433047713,-500.0,0.00016438,2]
[329554605,1718433047725,-500.0,0.00016438,2]
[329554608,1718433047743,-500.0,0.00016438,2]
[329554612,1718433047770,-501.53186918,0.00016438,2]
[329554613,1718433047780,-500.0,0.00016438,2]
[329554615,1718433047824,-500.0,0.00016438,2]
[329554617,1718433047834,-579.05584209,0.00016438,2]
[329554618,1718433047845,-2029.52,0.00016438,2]
[329554619,1718433047857,-500.0,0.00016438,2]
[329554621,1718433047873,-500.0,0.00016438,2]
[329554623,1718433047885,-512.33857887,0.00016438,2]
[329554624,1718433047897,-485.8195787,0.00016438,2]
[329554626,1718433047910,-500.0,0.00016438,2]
[329554629,1718433047942,-500.0,0.00016438,2]
[329554630,1718433047953,-512.4880406,0.00016438,2]
[329554631,1718433047964,-507.34554153,0.00016438,2]
[329554633,1718433048004,-500.53911999,0.00016438,2]
[329554634,1718433048029,-229.17527006,0.00016438,2]
[329554636,1718433048043,-500.0,0.00016438,2]
[329554638,1718433048084,-1562.64,0.00016438,2]
[329554641,1718433048098,-2651.19,0.00016438,2]
[329554643,1718433048122,-500.0,0.00016438,2]
[329554645,1718433048148,-500.0,0.00016438,2]
[329554647,1718433048160,-508.06333468,0.00016438,2]
[329554649,1718433048189,-505.19943147,0.00016438,2]
[329554651,1718433048201,-306.4568,0.00016438,2]
[329554653,1718433048213,-306.4568,0.00016438,2]
[329554655,1718433048229,-500.0,0.00016438,2]
[329554657,1718433048263,-500.0,0.00016438,2]
[329554660,1718433048282,-501.58679299,0.00016438,2]
[329554662,1718433048332,-306.4568,0.00016438,2]
[329554663,1718433048380,-619.75349368,0.00016438,2]
[329554664,1718433048391,-306.4568,0.00016438,2]
[329554665,1718433048412,-500.0,0.00016438,2]
[329554666,1718433048424,-501.62170579,0.00016438,2]
[329554667,1718433048440,-514.92427425,0.00016438,2]
[329554668,1718433048453,-500.0,0.00016438,2]
[329554669,1718433048464,-500.0,0.00016438,2]
[329554671,1718433048476,-500.0,0.00016438,2]
[329554674,1718433048505,-357.81144644,0.00016438,2]
[329554676,1718433048528,-500.0,0.00016438,2]
[329554678,1718433048542,-500.0,0.00016438,2]
[329554680,1718433048575,-511.01192789,0.00016438,2]
[329554682,1718433048602,-155.392254,0.00016438,2]
[329554684,1718433048624,-511.9503795,0.00016438,2]
[329554685,1718433048636,-500.0,0.00016438,2]
[329554688,1718433048652,-500.0,0.00016438,2]
[329554690,1718433048666,-500.0,0.00016438,2]
[329554692,1718433048684,-507.55159226,0.00016438,2]
[329554695,1718433048725,-500.0,0.00016438,2]
[329554697,1718433048737,-151.0,0.00016438,2]
[329554699,1718433048754,-151.0,0.00016438,2]
[329554701,1718433048768,-500.0,0.00016438,2]
[329554703,1718433048780,-151.0,0.00016438,2]
[329554705,1718433048791,-8570.36,0.00016438,2]
[329554707,1718433048805,-168.006652,0.00016438,2]
[329554708,1718433048832,-500.0,0.00016438,2]
[329554710,1718433048847,-155.43921376,0.00016438,2]
[329554712,1718433048858,-522.91391382,0.00016438,2]
[329554714,1718433048869,-500.0,0.00016438,2]
[329554716,1718433048881,-500.0,0.00016438,2]
[329554719,1718433048921,-516.23304055,0.00016438,2]
[329554721,1718433048933,-500.0,0.00016438,2]
[329554723,1718433048951,-500.0,0.00016438,2]
[329554725,1718433048964,-500.8,0.00016438,2]
[329554727,1718433048976,-500.48343762,0.00016438,2]
[329554729,1718433049001,-6024.02,0.00016438,2]
[329554730,1718433049014,-500.0,0.00016438,2]
[329554732,1718433049033,-500.0,0.00016438,2]
[329554735,1718433049048,-501.31521941,0.00016438,2]
[329554737,1718433049064,-500.0,0.00016438,2]
[329554739,1718433049086,-909.86,0.00016438,2]
[329554741,1718433049098,-462.09154056,0.00016438,2]
[329554743,1718433049108,-500.0,0.00016438,2]
[329554745,1718433049118,-505.4101433,0.00016438,2]
[329554747,1718433049136,-500.0,0.00016438,2]
[329554749,1718433049150,-515.75799555,0.00016438,2]
[329554750,1718433049163,-500.0,0.00016438,2]
[329554752,1718433049174,-533.77,0.00016438,2]
[329554754,1718433049186,-500.0,0.00016438,2]
[329554756,1718433049197,-500.0,0.00016438,2]
[329554758,1718433049207,-276.63783666,0.00016438,2]
[329554766,1718433049311,-731.85,0.00016438,2]
[329554767,1718433049325,-1669.12,0.00016438,2]
[329554769,1718433049336,-515.23555991,0.00016438,2]
[329554771,1718433049348,-414.68833695,0.00016438,2]
[329554773,1718433049364,-151.0,0.00016438,2]
[329554776,1718433049376,-151.0,0.00016438,2]
[329554778,1718433049387,-151.0,0.00016438,2]
[329554780,1718433049400,-500.0,0.00016438,2]
[329554781,1718433049415,-151.0,0.00016438,2]
[329554783,1718433049437,-500.0,0.00016438,2]
[329554785,1718433049449,-6330.18,0.00016438,2]
[329554787,1718433049460,-500.0,0.00016438,2]
[329554789,1718433049476,-500.0,0.00016438,2]
[329554791,1718433049486,-500.0,0.00016438,2]
[329554793,1718433049504,-501.08626834,0.00016438,2]
[329554796,1718433049544,-151.0,0.00016438,2]
[329554798,1718433049564,-2316.31,0.00016438,2]
[329554800,1718433049576,-791.34,0.00016438,2]
[329554802,1718433049588,-167.594488,0.00016438,2]
[329554804,1718433049616,-557.73113295,0.00016438,2]
[329554806,1718433049628,-4342.34,0.00016438,2]
[329554808,1718433049645,-500.0,0.00016438,2]
[329554811,1718433049659,-151.0,0.00016438,2]
[329554813,1718433049672,-151.0,0.00016438,2]
[329554814,1718433049687,-522.15283086,0.00016438,2]
[329554816,1718433049700,-500.0,0.00016438,2]
[329554818,1718433049711,-500.0,0.00016438,2]
[329554820,1718433049723,-506.39853299,0.00016438,2]
[329554822,1718433049736,-281.96410168,0.00016438,2]
[329554824,1718433049747,-500.0,0.00016438,2]
[329554826,1718433049762,-500.0,0.00016438,2]
[329554828,1718433049774,-500.0,0.00016438,2]
[329554830,1718433049786,-500.0,0.00016438,2]
[329554832,1718433049804,-500.0,0.00016438,2]
[329554834,1718433049815,-500.0,0.00016438,2]
[329554836,1718433049827,-511.64771545,0.00016438,2]
[329554837,1718433049839,-500.0,0.00016438,2]
[329554839,1718433049855,-500.0,0.00016438,2]
[329554841,1718433049867,-500.0,0.00016438,2]
[329554843,1718433049884,-500.0,0.00016438,2]
[329554845,1718433049895,-500.0,0.00016438,2]
[329554847,1718433049926,-503.41446957,0.00016438,2]
[329554849,1718433049941,-500.0,0.00016438,2]
[329554851,1718433049959,-500.0,0.00016438,2]
[329554853,1718433049978,-503.10456572,0.00016438,2]
[329554854,1718433050000,-518.14178437,0.00016438,2]
[329554856,1718433050017,-500.0,0.00016438,2]
[329554858,1718433050034,-500.0,0.00016438,2]
[329554860,1718433050052,-500.0,0.00016438,2]
[329554862,1718433050092,-505.66927435,0.00016438,2]
[329554864,1718433050106,-515.14,0.00016438,2]
[329554866,1718433050125,-316.18652641,0.00016438,2]
[329554867,1718433050176,-500.0,0.00016438,2]
[329554868,1718433050187,-500.0,0.00016438,2]
[329554869,1718433050205,-502.57245589,0.00016438,2]
[329554870,1718433050216,-502.54537138,0.00016438,2]
[329554871,1718433050229,-500.0,0.00016438,2]
[329554872,1718433050239,-500.0,0.00016438,2]
[329554873,1718433050251,-492.02940358,0.00016438,2]
[329554874,1718433050270,-500.0,0.00016438,2]
[329554875,1718433050283,-533.67592212,0.00016438,2]
[329554876,1718433050308,-151.0,0.00016438,2]
[329554877,1718433050318,-151.0,0.00016438,2]
[329554878,1718433050329,-500.0,0.00016438,2]
[329554879,1718433050341,-2023.29,0.00016438,2]
[329554880,1718433050358,-500.0,0.00016438,2]
[329554881,1718433050369,-501.99745613,0.00016438,2]
[329554882,1718433050381,-151.0,0.00016438,2]
[329554883,1718433050392,-151.0,0.00016438,2]
[329554884,1718433050402,-500.0,0.00016711,2]
[329554885,1718433050424,-500.0,0.00016711,2]
[329554886,1718433050440,-503.14135084,0.00016711,2]
[329554887,1718433050451,-500.0,0.00016711,2]
[329554888,1718433050464,-500.0,0.00016711,2]
[329554889,1718433050480,-500.0,0.00016711,2]
[329554890,1718433050496,-837.79,0.00016711,2]
[329554892,1718433050524,-500.0,0.00016711,2]
[329554894,1718433050537,-500.0,0.00016711,2]
[329554896,1718433050564,-8228.90221023,0.00016712,13]
[329554903,1718433050732,-7167.86002397,0.00016712,13]
[329554905,1718433050747,-625.61246061,0.00016712,2]
[329554907,1718433050766,-500.0,0.00016712,2]
[329554910,1718433050805,-630.55948892,0.00016712,2]
[329554912,1718433050822,-500.0,0.00016712,2]
[329554915,1718433050869,-500.0,0.00016712,2]
[329554917,1718433050887,-500.0,0.00016712,2]
[329554919,1718433050908,-151.0,0.00016712,2]
[329554922,1718433050924,-151.0,0.00016712,2]
[329554925,1718433050954,-500.0,0.00016712,2]
[329554927,1718433050974,-793.95,0.00016712,2]
[329554928,1718433050988,-500.0,0.00016712,2]
[329554930,1718433051018,-500.0,0.00016712,2]
[329554931,1718433051045,-500.0,0.00016712,2]
[329554932,1718433051057,-150.70133203,0.00016712,2]
[329554933,1718433051078,-529.4,0.00016712,2]
[329554934,1718433051097,-151.0,0.00016712,2]
[329554936,1718433051119,-500.0,0.00016712,2]
[329554938,1718433051135,-1248.94,0.00016712,2]
[329554940,1718433051151,-178.20687991,0.00016712,2]
[329554942,1718433051164,-629.58,0.00016712,2]
[329554944,1718433051177,-500.0,0.00016712,2]
[329554946,1718433051188,-203.902466,0.00016712,2]
[329554948,1718433051201,-500.0,0.00016712,2]
[329554950,1718433051212,-500.0,0.00016712,2]
[329554951,1718433051223,-500.0,0.00016712,2]
[329554953,1718433051234,-501.31024849,0.00016712,2]
[329554955,1718433051246,-151.0,0.00016712,2]
[329554956,1718433051257,-151.0,0.00016712,2]
[329554957,1718433051270,-500.0,0.00016712,2]
[329554958,1718433051280,-943.87,0.00016712,2]
[329554959,1718433051294,-630.46,0.00016712,2]
[329554960,1718433051305,-559.44,0.00016712,2]
[329554961,1718433051318,-2167.47,0.00016712,2]
[329554962,1718433051330,-511.46726008,0.00016712,2]
[329554963,1718433051342,-759.55,0.00016712,2]
[329554964,1718433051354,-1465.84,0.00016712,2]
[329554965,1718433051365,-585.44,0.00016712,2]
[329554966,1718433051378,-500.0,0.00016712,2]
[329554967,1718433051388,-2029.52,0.00016712,2]
[329554968,1718433051398,-500.0,0.00016712,2]
[329554969,1718433051408,-500.0,0.00016712,2]
[329554970,1718433051429,-1562.64,0.00016712,2]
[329554971,1718433051439,-2651.19,0.00016712,2]
[329554972,1718433051449,-306.4568,0.00016712,2]
[329554973,1718433051460,-306.4568,0.00016712,2]
[329554974,1718433051470,-306.4568,0.00016712,2]
[329554976,1718433051484,-306.4568,0.00016712,2]
[329554978,1718433051502,-519.95,0.00016712,2]
[329554980,1718433051523,-500.0,0.00016712,2]
[329554982,1718433051537,-151.0,0.00016712,2]
[329554984,1718433051558,-151.0,0.00016712,2]
[329554986,1718433051568,-6525.54792254,0.00016712,2]
[329555030,1718433052352,-151.0,0.00016438,2]
[329555033,1718433052375,-151.0,0.00016438,2]
[329555034,1718433052395,-2044.81207746,0.00016712,2]
[329555035,1718433052416,-500.8,0.00016712,2]
[329555036,1718433052452,-6024.02,0.00016712,2]
[329555037,1718433052467,-909.86,0.00016712,2]
[329555039,1718433052481,-159.50908249,0.00016712,2]
[329555040,1718433052536,-533.77,0.00016712,2]
[329555042,1718433052565,-731.85,0.00016712,2]
[329555047,1718433052609,-1669.12,0.00016712,2]
[329555048,1718433052722,-151.0,0.00016712,2]
[329555049,1718433052745,-151.0,0.00016712,2]
[329555050,1718433052762,-151.0,0.00016712,2]
[329555051,1718433052775,-151.0,0.00016712,2]
[329555052,1718433052801,-6330.18,0.00016712,2]
[329555053,1718433052820,-389.18633945,0.00016712,2]
[329555054,1718433052856,-2316.31,0.00016712,2]
[329555055,1718433052868,-791.34,0.00016712,2]
[329555056,1718433052880,-4342.34,0.00016712,2]
[329555057,1718433052892,-151.0,0.00016712,2]
[329555058,1718433052908,-151.0,0.00016712,2]
[329555059,1718433052932,-500.0,0.00016712,2]
[329555060,1718433052953,-500.0,0.00016712,2]
[329555061,1718433052969,-500.0,0.00016712,2]
[329555062,1718433052982,-500.0,0.00016712,2]
[329555063,1718433052994,-500.0,0.00016712,2]
[329555064,1718433053007,-500.0,0.00016712,2]
[329555065,1718433053019,-500.0,0.00016712,2]
[329555066,1718433053031,-500.0,0.00016712,2]
[329555067,1718433053043,-515.14,0.00016712,2]
[329555068,1718433053055,-500.0,0.00016712,2]
[329555069,1718433053066,-151.0,0.00016712,2]
[329555070,1718433053078,-151.0,0.00016712,2]
[329555071,1718433053090,-2023.29,0.00016712,2]
[329555072,1718433053101,-500.0,0.00016712,2]
[329555073,1718433053112,-151.064,0.00016716,2]
[329555074,1718433053123,-500.0,0.00016716,2]
[329555075,1718433053137,-600.0,0.00016731,2]
[329555076,1718433053153,-600.0,0.00016905,2]
[329555077,1718433053166,-151.0,0.00016986,2]
[329555078,1718433053180,-532.58386748,0.00016986,2]
[329555079,1718433053200,-508.50415849,0.00016986,2]
[329555080,1718433053215,-500.0,0.00016986,2]
[329555081,1718433053227,-392.36626128,0.00016986,2]
[329555082,1718433053239,-500.0,0.00016986,2]
[329555083,1718433053250,-793.95,0.00016986,2]
[329555084,1718433053262,-624.18666731,0.00016986,2]
[329555085,1718433053275,-500.0,0.00016986,2]
[329555086,1718433053295,-529.4,0.00016986,2]
[329555087,1718433053308,-545.19553468,0.00016986,2]
[329555088,1718433053320,-1248.94,0.00016986,2]
[329555089,1718433053339,-629.58,0.00016986,2]
[329555090,1718433053351,-500.0,0.00016986,2]
[329555091,1718433053365,-500.0,0.00016986,2]
[329555092,1718433053377,-500.0,0.00016986,2]
[329555093,1718433053388,-500.0,0.00016986,2]
[329555094,1718433053402,-151.0,0.00016986,2]
[329555095,1718433053414,-500.0,0.00016986,2]
[329555096,1718433053426,-151.0,0.00016986,2]
[329555097,1718433053438,-943.87,0.00016986,2]
[329555098,1718433053455,-630.46,0.00016986,2]
[329555099,1718433053488,-559.44,0.00016986,2]
[329555100,1718433053499,-2167.47,0.00016986,2]
[329555101,1718433053521,-759.55,0.00016986,2]
[329555102,1718433053548,-1465.84,0.00016986,2]
[329555103,1718433053567,-585.44,0.00016986,2]
[329555104,1718433053581,-2029.52,0.00016986,2]
[329555105,1718433053594,-500.0,0.00016986,2]
[329555106,1718433053616,-500.0,0.00016986,2]
[329555107,1718433053631,-1562.64,0.00016986,2]
[329555108,1718433053653,-2651.19,0.00016986,2]
[329555109,1718433053689,-306.4568,0.00016986,2]
[329555110,1718433053728,-306.4568,0.00016986,2]
[329555111,1718433053742,-306.4568,0.00016986,2]
[329555112,1718433053758,-306.4568,0.00016986,2]
[329555113,1718433053773,-500.0,0.00016986,2]
[329555114,1718433053786,-151.0,0.00016986,2]
[329555115,1718433053801,-151.0,0.00016986,2]
[329555116,1718433053820,-8570.36,0.00016986,2]
[329555117,1718433053834,-500.8,0.00016986,2]
[329555118,1718433053849,-6024.02,0.00016986,2]
[329555119,1718433053886,-909.86,0.00016986,2]
[329555121,1718433053905,-533.77,0.00016986,2]
[329555123,1718433053925,-731.85,0.00016986,2]
[329555125,1718433053938,-1669.12,0.00016986,2]
[329555127,1718433053962,-151.0,0.00016986,2]
[329555129,1718433053982,-151.0,0.00016986,2]
[329555131,1718433053998,-260.044728,0.00016986,2]
[329555133,1718433054014,-6330.18,0.00016986,2]
[329555135,1718433054026,-2316.31,0.00016986,2]
[329555137,1718433054067,-791.34,0.00016986,2]
[329555140,1718433054126,-4342.34,0.00016986,2]
[329555142,1718433054137,-151.0,0.00016986,2]
[329555144,1718433054158,-151.0,0.00016986,2]
[329555145,1718433054197,-500.0,0.00016986,2]
[329555146,1718433054210,-500.0,0.00016986,2]
[329555147,1718433054225,-500.0,0.00016986,2]
[329555148,1718433054246,-500.0,0.00016986,2]
[329555149,1718433054263,-500.0,0.00016986,2]
[329555150,1718433054286,-500.0,0.00016986,2]
[329555151,1718433054299,-500.0,0.00016986,2]
[329555152,1718433054309,-515.14,0.00016986,2]
[329555153,1718433054321,-500.0,0.00016986,2]
[329555154,1718433054370,-151.0,0.00016986,2]
[329555155,1718433054400,-151.0,0.00016986,2]
[329555156,1718433054416,-500.0,0.00016986,2]
[329555159,1718433054460,-2023.29,0.00016986,2]
[329555161,1718433054472,-1000.0,0.00017,4]
[329555163,1718433054512,-600.0,0.00017079,2]
[329555165,1718433054527,-1276.4,0.00017122,2]
[329555166,1718433054547,-500.0,0.00017159,2]
[329555168,1718433054582,-500.0,0.00017159,2]
[329555170,1718433054594,-500.0,0.00017159,2]
[329555171,1718433054628,-500.0,0.00017159,2]
[329555172,1718433054640,-632.44063929,0.00017254,2]
[329555174,1718433054652,-34604.46075011,0.00017258,2]
[329555177,1718433054676,-153.434313,0.00017258,2]
[329555179,1718433054711,-530.75379266,0.00017258,2]
[329555180,1718433054727,-500.0,0.00017258,2]
[329555181,1718433054764,-203.902466,0.00017258,2]
[329555182,1718433054780,-245.231061,0.00017258,2]
[329555183,1718433054798,-500.0,0.00017258,2]
[329555184,1718433054831,-306.4568,0.00017258,2]
[329555185,1718433054874,-306.4568,0.00017258,2]
[329555186,1718433054889,-151.0,0.00017258,2]
[329555187,1718433054912,-500.0,0.00017258,2]
[329555188,1718433054943,-151.0,0.00017258,2]
[329555189,1718433054960,-151.0,0.00017258,2]
[329555190,1718433054998,-277.18156,0.00017258,2]
[329555191,1718433055030,-36923.82841149,0.00017259,2]
[329555192,1718433055060,-500.0,0.00017259,2]
[329555194,1718433055083,-500.0,0.00017259,2]
[329555196,1718433055120,-203.902466,0.00017259,2]
[329555199,1718433055136,-500.0,0.00017259,2]
[329555201,1718433055157,-500.0,0.00017259,2]
[329555203,1718433055172,-306.4568,0.00017259,2]
[329555205,1718433055186,-306.4568,0.00017259,2]
[329555207,1718433055200,-151.0,0.00017259,2]
[329555209,1718433055217,-500.0,0.00017259,2]
[329555211,1718433055234,-500.0,0.00017259,2]
[329555213,1718433055273,-151.0,0.00017259,2]
[329555215,1718433055297,-250.776016,0.00017259,2]
[329555217,1718433055313,-500.0,0.0001726,2]
[329555219,1718433055331,-793.95,0.0001726,2]
[329555221,1718433055367,-500.0,0.0001726,2]
[329555222,1718433055387,-529.4,0.0001726,2]
[329555225,1718433055400,-1248.94,0.0001726,2]
[329555226,1718433055419,-629.58,0.0001726,2]
[329555227,1718433055431,-500.0,0.0001726,2]
[329555228,1718433055444,-203.902466,0.0001726,2]
[329555229,1718433055460,-500.0,0.0001726,2]
[329555230,1718433055473,-500.0,0.0001726,2]
[329555231,1718433055489,-212.9175175,0.0001726,2]
[329555232,1718433055504,-500.0,0.0001726,2]
[329555233,1718433055527,-943.87,0.0001726,2]
[329555234,1718433055541,-630.46,0.0001726,2]
[329555235,1718433055559,-559.44,0.0001726,2]
[329555236,1718433055580,-2167.47,0.0001726,2]
[329555238,1718433055607,-759.55,0.0001726,2]
[329555240,1718433055637,-1465.84,0.0001726,2]
[329555242,1718433055671,-585.44,0.0001726,2]
[329555244,1718433055701,-2029.52,0.0001726,2]
[329555246,1718433055736,-500.0,0.0001726,2]
[329555248,1718433055752,-500.0,0.0001726,2]
[329555250,1718433055793,-1562.64,0.0001726,2]
[329555252,1718433055817,-2651.19,0.0001726,2]
[329555255,1718433055831,-306.4568,0.0001726,2]
[329555256,1718433055851,-306.4568,0.0001726,2]
[329555259,1718433055869,-500.0,0.0001726,2]
[329555261,1718433055901,-151.0,0.0001726,2]
[329555263,1718433055938,-8570.36,0.0001726,2]
[329555266,1718433055959,-500.8,0.0001726,2]
[329555268,1718433055974,-6024.02,0.0001726,2]
[329555270,1718433055995,-909.86,0.0001726,2]
[329555272,1718433056013,-533.77,0.0001726,2]
[329555274,1718433056028,-731.85,0.0001726,2]
[329555276,1718433056047,-1669.12,0.0001726,2]
[329555278,1718433056060,-151.0,0.0001726,2]
[329555280,1718433056095,-6330.18,0.0001726,2]
[329555282,1718433056113,-2316.31,0.0001726,2]
[329555285,1718433056132,-791.34,0.0001726,2]
[329555287,1718433056146,-4342.34,0.0001726,2]
[329555290,1718433056199,-500.0,0.0001726,2]
[329555292,1718433056251,-500.0,0.0001726,2]
[329555294,1718433056280,-500.0,0.0001726,2]
[329555296,1718433056297,-500.0,0.0001726,2]
[329555297,1718433056318,-500.0,0.0001726,2]
[329555299,1718433056343,-500.0,0.0001726,2]
[329555300,1718433056365,-500.0,0.0001726,2]
[329555302,1718433056396,-515.14,0.0001726,2]
[329555304,1718433056426,-500.0,0.0001726,2]
[329555305,1718433056458,-2023.29,0.0001726,2]
[329555308,1718433056472,-751.21662244,0.00017442,2]
[329555316,1718433056683,-525.18337756,0.00017442,2]
[329555317,1718433056702,-155.0,0.0001747,2]
[329555318,1718433056713,-3438.21954201,0.000175,2]